[Event "16th EWICC 2015"]
[Site "Kutaisi"]
[Date "2015.06.01"]
[Round "4"]
[White "Nikoladze, Sopio"]
[Black "Melia, Salome"]
[Result "1/2-1/2"]
[ECO "A40"]
[WhiteElo "2155"]
[BlackElo "2452"]
[Annotator "Robot 11"]
[PlyCount "162"]
[EventDate "2015.??.??"]
[EventCountry "GEO"]
[TimeControl "900+10"]

1. d4 {[%emt 0:00:02]} g6 {[%emt 0:00:09]} 2. Nf3 {[%emt 0:00:01]} Bg7 {[%emt
0:00:02]} 3. g3 {[%emt 0:00:01]} c5 {[%emt 0:00:06]} 4. Bg2 {[%emt 0:00:13]}
cxd4 {[%emt 0:00:03]} 5. Nxd4 {[%emt 0:00:05]} Nc6 {[%emt 0:00:05]} 6. Nxc6 {
[%emt 0:01:21]} bxc6 {[%emt 0:00:02]} 7. O-O {[%emt 0:00:02]} Nf6 {[%emt 0:00:
12]} 8. e4 {[%emt 0:00:03]} O-O {[%emt 0:00:03]} 9. Re1 {[%emt 0:00:02]} e5 {
[%emt 0:00:20]} 10. c4 {[%emt 0:00:08]} d6 {[%emt 0:00:14]} 11. b3 {[%emt 0:00:
03]} Bg4 {[%emt 0:00:42]} 12. Qd2 {[%emt 0:00:17]} Qd7 {[%emt 0:00:23]} 13. Nc3
{[%emt 0:00:17]} Rfd8 {[%emt 0:00:17]} 14. Bb2 {[%emt 0:01:19]} Bh3 {[%emt 0:
00:46]} 15. Rad1 {[%emt 0:00:20]} Bg4 {[%emt 0:00:36]} 16. Rc1 {[%emt 0:00:32]}
h5 {[%emt 0:01:01]} 17. f3 {[%emt 0:01:33]} Be6 {[%emt 0:00:17]} 18. Rcd1 {
[%emt 0:00:01]} Qc7 {[%emt 0:00:43]} 19. Qe3 {[%emt 0:01:52]} Kh7 {[%emt 0:02:
58]} 20. h3 {[%emt 0:00:30]} Bh6 {[%emt 0:01:16]} 21. Qf2 {[%emt 0:00:21]} h4 {
[%emt 0:01:49]} 22. g4 {[%emt 0:01:32]} Qb6 {[%emt 0:00:01]} 23. Ba3 {[%emt 0:
01:10]} Qxf2+ {[%emt 0:00:57]} 24. Kxf2 {[%emt 0:00:01]} Bf4 {[%emt 0:00:57]}
25. Ne2 {[%emt 0:00:28]} d5 {[%emt 0:00:54]} 26. Nxf4 {[%emt 0:00:28]} exf4 {
[%emt 0:00:16]} 27. cxd5 {[%emt 0:00:25]} cxd5 {[%emt 0:00:07]} 28. Be7 {[%emt
0:00:08]} Kg7 {[%emt 0:00:20]} 29. Bxd8 {[%emt 0:00:24]} Rxd8 {[%emt 0:00:00]}
30. exd5 {[%emt 0:00:55]} Nxd5 {[%emt 0:00:02]} 31. Bf1 {[%emt 0:01:14]} Rc8 {
[%emt 0:00:30]} 32. Bc4 {[%emt 0:00:13]} Ne3 {[%emt 0:00:09]} 33. Rc1 {[%emt 0:
00:59]} Nxc4 {[%emt 0:00:47]} 34. bxc4 {[%emt 0:00:13]} Rxc4 {[%emt 0:00:08]}
35. Rxc4 {[%emt 0:00:51]} Bxc4 {[%emt 0:00:01]} 36. a3 {[%emt 0:01:27]} g5 {
[%emt 0:00:04]} 37. Re5 {[%emt 0:00:02]} Kg6 {[%emt 0:00:28]} 38. Rc5 {[%emt 0:
00:09]} Bd3 {[%emt 0:00:45]} 39. a4 {[%emt 0:00:13]} f6 {[%emt 0:01:27]} 40.
Rd5 {[%emt 0:00:47]} Bc4 {[%emt 0:00:13]} 41. Rc5 {[%emt 0:00:10]} Bd3 {[%emt
0:00:06]} 42. Rc3 {[%emt 0:00:14]} Bb1 {[%emt 0:00:21]} 43. Ke2 {[%emt 0:00:09]
} Ba2 {[%emt 0:00:13]} 44. Rc7 {[%emt 0:00:34]} a6 {[%emt 0:00:01]} 45. Rc6 {
[%emt 0:00:03]} Bb3 {[%emt 0:00:07]} 46. a5 {[%emt 0:00:13]} Bd5 {[%emt 0:00:
31]} 47. Rc5 {[%emt 0:00:04]} Bb7 {[%emt 0:00:55]} 48. Rc3 {[%emt 0:00:07]} Bd5
{[%emt 0:00:05]} 49. Kd2 {[%emt 0:00:07]} Bb7 {[%emt 0:00:06]} 50. Kc2 {[%emt
0:00:06]} Bd5 {[%emt 0:00:03]} 51. Kb2 {[%emt 0:00:09]} Bb7 {[%emt 0:00:17]}
52. Rd3 {[%emt 0:00:10]} Bc6 {[%emt 0:00:05]} 53. Kc3 {[%emt 0:00:10]} Bb5 {
[%emt 0:00:04]} 54. Rd2 {[%emt 0:00:05]} Bf1 {[%emt 0:00:03]} 55. Rh2 {[%emt 0:
00:32]} f5 {[%emt 0:00:13]} 56. Kd4 {[%emt 0:00:18]} fxg4 {[%emt 0:00:07]} 57.
fxg4 {[%emt 0:00:05]} f3 {[%emt 0:00:20]} 58. Rb2 {[%emt 0:00:09]} Be2 {[%emt
0:00:39]} 59. Rb6+ {[%emt 0:00:12]} Kf7 {[%emt 0:00:03]} 60. Ke3 {[%emt 0:00:
03]} Kg7 {[%emt 0:00:06]} 61. Kf2 {[%emt 0:00:10]} Kf7 {[%emt 0:00:04]} 62. Rc6
{[%emt 0:00:05]} Kg7 {[%emt 0:00:03]} 63. Rc5 {[%emt 0:00:14]} Kg6 {[%emt 0:00:
05]} 64. Rf5 {[%emt 0:00:02]} Kh6 {[%emt 0:00:34]} 65. Rf6+ {[%emt 0:00:04]}
Kg7 {[%emt 0:00:02]} 66. Rf5 {[%emt 0:00:15]} Kg6 {[%emt 0:00:00]} 67. Rf8 {
[%emt 0:00:02]} Kg7 {[%emt 0:00:04]} 68. Rf5 {[%emt 0:00:27]} Kg6 {[%emt 0:00:
03]} 69. Ke3 {[%emt 0:00:02]} Bf1 {[%emt 0:00:40]} 70. Rxf3 {[%emt 0:00:02]}
Bg2 {[%emt 0:00:01]} 71. Rf2 {[%emt 0:00:07]} Bxh3 {[%emt 0:00:02]} 72. Kf3 {
[%emt 0:00:09]} Kg7 {[%emt 0:00:04]} 73. Ke3 {[%emt 0:00:55]} Bxg4 {[%emt 0:00:
07]} 74. Rg2 {[%emt 0:00:08]} h3 {[%emt 0:00:22]} 75. Rb2 {[%emt 0:00:12]} Kg6
{[%emt 0:00:29]} 76. Rb6+ {[%emt 0:00:08]} Kh5 {[%emt 0:00:02]} 77. Kf2 {[%emt
0:00:05]} h2 {[%emt 0:00:16]} 78. Kg2 {[%emt 0:00:02]} Be2 {[%emt 0:00:04]} 79.
Kxh2 {[%emt 0:00:15]} Kg4 {[%emt 0:00:18]} 80. Rb4+ {[%emt 0:00:03]} Kf5 {
[%emt 0:00:07]} 81. Kg3 {[%emt 0:00:02]} Ke5 {[%emt 0:00:07]} 1/2-1/2

[Event "16th EWICC 2015"]
[Site "Kutaisi"]
[Date "2015.06.01"]
[Round "4"]
[White "Schleining, Zoya"]
[Black "Choladze, Mariam"]
[Result "0-1"]
[ECO "A05"]
[WhiteElo "2375"]
[BlackElo "1989"]
[Annotator "Robot 11"]
[PlyCount "80"]
[EventDate "2015.??.??"]
[EventCountry "GEO"]
[TimeControl "900+10"]

1. Nf3 {[%emt 0:00:02]} Nf6 {[%emt 0:00:04]} 2. c4 {[%emt 0:00:01]} b6 {[%emt
0:00:09]} 3. g3 {[%emt 0:00:07]} Bb7 {[%emt 0:00:02]} 4. Bg2 {[%emt 0:00:02]}
c5 {[%emt 0:00:04]} 5. O-O {[%emt 0:00:08]} g6 {[%emt 0:00:02]} 6. Nc3 {[%emt
0:00:12]} Bg7 {[%emt 0:00:01]} 7. d4 cxd4 {[%emt 0:00:02]} 8. Qxd4 {[%emt 0:00:
38]} d6 {[%emt 0:00:05]} 9. Rd1 {[%emt 0:00:10]} Nbd7 {[%emt 0:00:04]} 10. Qe3
{[%emt 0:00:50]} O-O {[%emt 0:00:10]} 11. b3 {[%emt 0:00:15]} Ng4 {[%emt 0:01:
48]} 12. Qd2 {[%emt 0:00:09]} Nc5 {[%emt 0:00:17]} 13. Bb2 {[%emt 0:00:08]}
Nxf2 {[%emt 0:01:01]} 14. Kxf2 {[%emt 0:01:44]} Bxc3 {[%emt 0:00:03]} 15. Qc2 {
[%emt 0:00:08]} Ne4+ {[%emt 0:00:43]} 16. Kg1 {[%emt 0:00:15]} Bxb2 {[%emt 0:
00:02]} 17. Qxb2 {[%emt 0:00:01]} Qc7 {[%emt 0:00:08]} 18. Qd4 {[%emt 0:00:24]}
e5 {[%emt 0:02:01]} 19. Qe3 {[%emt 0:00:11]} f5 {[%emt 0:00:11]} 20. Nd2 {
[%emt 0:00:55]} Nxd2 {[%emt 0:01:19]} 21. Bxb7 {[%emt 0:00:25]} Qxb7 {[%emt 0:
00:02]} 22. Qxd2 {[%emt 0:00:14]} Rf6 {[%emt 0:01:36]} 23. Qd5+ {[%emt 0:00:04]
} Qxd5 {[%emt 0:00:05]} 24. cxd5 {[%emt 0:00:23]} f4 {[%emt 0:01:53]} 25. Rac1
{[%emt 0:00:39]} Raf8 {[%emt 0:00:37]} 26. Rc6 {[%emt 0:01:09]} Kg7 {[%emt 0:
00:17]} 27. gxf4 {[%emt 0:00:27]} exf4 {[%emt 0:01:58]} 28. Rdc1 {[%emt 0:00:
48]} g5 {[%emt 0:00:23]} 29. Rc7+ {[%emt 0:01:02]} R8f7 {[%emt 0:00:01]} 30.
Rc8 {[%emt 0:00:52]} Kg6 {[%emt 0:00:24]} 31. Re8 {[%emt 0:00:28]} Kf5 {[%emt
0:00:47]} 32. Rcc8 {[%emt 0:00:27]} Kg4 {[%emt 0:00:29]} 33. Kg2 {[%emt 0:01:
06]} Rf5 {[%emt 0:00:31]} 34. h3+ {[%emt 0:00:29]} Kh4 {[%emt 0:00:21]} 35. Re6
{[%emt 0:00:11]} h5 {[%emt 0:00:37]} 36. Rxd6 {[%emt 0:00:18]} f3+ {[%emt 0:00:
20]} 37. exf3 {[%emt 0:00:02]} Rxf3 {[%emt 0:00:02]} 38. Rc4+ {[%emt 0:00:23]}
g4 {[%emt 0:00:02]} 39. hxg4 {[%emt 0:00:18]} Rf2+ {[%emt 0:00:03]} 40. Kg1 {
[%emt 0:00:13]} Rf1+ {[%emt 0:00:02]} 0-1

[Event "16th EWICC 2015"]
[Site "Kutaisi"]
[Date "2015.06.01"]
[Round "4"]
[White "Daulyte, Deimante"]
[Black "Paehtz, Elisabeth"]
[Result "1/2-1/2"]
[ECO "C05"]
[WhiteElo "2402"]
[BlackElo "2473"]
[Annotator "Robot 11"]
[PlyCount "57"]
[EventDate "2015.??.??"]
[EventCountry "GEO"]
[TimeControl "900+10"]

1. e4 {[%emt 0:00:02]} e6 {[%emt 0:00:01]} 2. d4 {[%emt 0:00:03]} d5 {[%emt 0:
00:00]} 3. Nd2 {[%emt 0:00:03]} Nf6 {[%emt 0:00:02]} 4. e5 {[%emt 0:00:08]}
Nfd7 {[%emt 0:00:01]} 5. f4 {[%emt 0:00:18]} c5 {[%emt 0:00:02]} 6. Ngf3 {
[%emt 0:00:03]} cxd4 {[%emt 0:00:03]} 7. Nb3 {[%emt 0:00:16]} Nc6 {[%emt 0:00:
20]} 8. Nfxd4 {[%emt 0:00:25]} Be7 {[%emt 0:03:15]} 9. Be2 {[%emt 0:01:27]} O-O
{[%emt 0:00:33]} 10. O-O {[%emt 0:00:40]} Nc5 {[%emt 0:00:08]} 11. Be3 {[%emt
0:01:17]} Ne4 {[%emt 0:01:09]} 12. Nd2 {[%emt 0:00:57]} Nxd4 {[%emt 0:00:59]}
13. Bxd4 {[%emt 0:00:03]} f5 {[%emt 0:00:01]} 14. exf6 {[%emt 0:00:26]} Nxf6 {
[%emt 0:00:05]} 15. Bd3 {[%emt 0:00:17]} Bd7 {[%emt 0:00:16]} 16. Qe2 {[%emt 0:
00:05]} Qc7 {[%emt 0:00:15]} 17. Nb3 {[%emt 0:00:37]} Bd6 {[%emt 0:00:24]} 18.
Be5 {[%emt 0:00:09]} g6 {[%emt 0:02:12]} 19. Rae1 {[%emt 0:00:27]} Rae8 {[%emt
0:00:33]} 20. Nd4 {[%emt 0:00:38]} Ne4 {[%emt 0:00:20]} 21. Bxe4 {[%emt 0:00:
33]} Bxe5 {[%emt 0:00:01]} 22. fxe5 {[%emt 0:00:17]} Qxe5 {[%emt 0:00:29]} 23.
Rxf8+ {[%emt 0:03:43]} Rxf8 {[%emt 0:00:01]} 24. Nf3 {[%emt 0:00:12]} Qxe4 {
[%emt 0:00:03]} 25. Qxe4 {[%emt 0:00:01]} dxe4 {[%emt 0:00:01]} 26. Rxe4 {
[%emt 0:00:01]} Bc6 {[%emt 0:00:16]} 27. Rxe6 {[%emt 0:00:18]} Bxf3 {[%emt 0:
00:01]} 28. gxf3 {[%emt 0:00:02]} Rxf3 {[%emt 0:00:02]} 29. Re7 {[%emt 0:01:24]
} 1/2-1/2

[Event "16th EWICC 2015"]
[Site "Kutaisi"]
[Date "2015.06.01"]
[Round "4"]
[White "Galliamova, Alisa"]
[Black "Arabidze, Meri"]
[Result "0-1"]
[ECO "A84"]
[WhiteElo "2478"]
[BlackElo "2403"]
[Annotator "Robot 11"]
[PlyCount "86"]
[EventDate "2015.??.??"]
[EventCountry "GEO"]
[TimeControl "900+10"]

1. d4 {[%emt 0:00:02]} f5 {[%emt 0:00:01]} 2. c4 {[%emt 0:00:23]} e6 {[%emt 0:
00:01]} 3. Nc3 {[%emt 0:00:03]} Nf6 {[%emt 0:00:01]} 4. e3 {[%emt 0:00:03]} d5
{[%emt 0:00:17]} 5. Bd3 {[%emt 0:00:11]} c6 {[%emt 0:00:02]} 6. Nge2 {[%emt 0:
00:03]} Bd6 {[%emt 0:00:04]} 7. f3 {[%emt 0:00:02]} O-O {[%emt 0:00:18]} 8. O-O
{[%emt 0:00:12]} Qe7 {[%emt 0:00:13]} 9. h3 {[%emt 0:01:17]} c5 {[%emt 0:01:29]
} 10. Nb5 {[%emt 0:01:02]} Nc6 {[%emt 0:00:09]} 11. Nxd6 {[%emt 0:01:14]} Qxd6
{[%emt 0:00:01]} 12. cxd5 {[%emt 0:01:30]} Nxd5 {[%emt 0:00:02]} 13. a3 {[%emt
0:02:41]} cxd4 {[%emt 0:00:12]} 14. exd4 {[%emt 0:00:17]} Bd7 {[%emt 0:00:26]}
15. Bc4 {[%emt 0:00:18]} Nce7 {[%emt 0:00:20]} 16. Qd3 {[%emt 0:02:01]} Rac8 {
[%emt 0:00:23]} 17. Bd2 {[%emt 0:00:24]} a6 {[%emt 0:00:22]} 18. Rfd1 {[%emt 0:
00:11]} Rxc4 {[%emt 0:02:18]} 19. Qxc4 {[%emt 0:00:01]} Bb5 {[%emt 0:00:01]}
20. Qc5 {[%emt 0:00:06]} Qxc5 {[%emt 0:00:04]} 21. dxc5 {[%emt 0:00:02]} Bxe2 {
[%emt 0:00:03]} 22. Re1 {[%emt 0:00:02]} Bc4 {[%emt 0:00:23]} 23. Rxe6 {[%emt
0:00:15]} Nc6 {[%emt 0:00:05]} 24. Rd6 {[%emt 0:00:15]} Nd4 {[%emt 0:00:50]}
25. Bc3 {[%emt 0:01:01]} Nxc3 {[%emt 0:01:00]} 26. bxc3 {[%emt 0:00:01]} Nb3 {
[%emt 0:00:13]} 27. Re1 {[%emt 0:00:34]} Nxc5 {[%emt 0:00:48]} 28. Re7 {[%emt
0:00:02]} Rc8 {[%emt 0:00:16]} 29. h4 {[%emt 0:00:12]} Bf7 {[%emt 0:02:01]} 30.
g4 {[%emt 0:00:12]} fxg4 {[%emt 0:00:12]} 31. fxg4 {[%emt 0:00:01]} Kf8 {[%emt
0:00:00]} 32. Re3 {[%emt 0:00:09]} Re8 {[%emt 0:00:44]} 33. Rxe8+ {[%emt 0:00:
40]} Kxe8 {[%emt 0:00:00]} 34. Rd4 {[%emt 0:00:09]} Ke7 {[%emt 0:00:08]} 35.
Kf2 {[%emt 0:00:06]} b5 {[%emt 0:00:11]} 36. Ke3 {[%emt 0:00:03]} Na4 {[%emt 0:
00:25]} 37. Re4+ {[%emt 0:00:03]} Kd6 {[%emt 0:00:24]} 38. Rf4 {[%emt 0:00:40]}
Be6 {[%emt 0:00:26]} 39. Kd4 {[%emt 0:00:04]} Nb6 {[%emt 0:00:19]} 40. g5 {
[%emt 0:00:38]} Nc4 {[%emt 0:00:31]} 41. Rf8 {[%emt 0:00:05]} a5 {[%emt 0:00:
37]} 42. Rh8 {[%emt 0:00:27]} Nxa3 {[%emt 0:00:03]} 43. Rxh7 {[%emt 0:00:36]}
Bf5 {[%emt 0:00:50]} 0-1

[Event "16th EWICC 2015"]
[Site "Kutaisi"]
[Date "2015.06.01"]
[Round "4"]
[White "Gaponenko, Inna"]
[Black "Charkhalashvili, Inga"]
[Result "1-0"]
[ECO "B13"]
[WhiteElo "2391"]
[BlackElo "2318"]
[Annotator "Robot 11"]
[PlyCount "115"]
[EventDate "2015.??.??"]
[EventCountry "GEO"]
[TimeControl "900+10"]

1. e4 {[%emt 0:00:02]} c6 {[%emt 0:00:01]} 2. d4 {[%emt 0:00:01]} d5 {[%emt 0:
00:01]} 3. exd5 {[%emt 0:00:01]} cxd5 {[%emt 0:00:04]} 4. c4 {[%emt 0:00:01]}
Nf6 {[%emt 0:00:02]} 5. Nc3 {[%emt 0:00:01]} Nc6 {[%emt 0:00:01]} 6. cxd5 {
[%emt 0:00:02]} Nxd5 {[%emt 0:00:02]} 7. Nf3 {[%emt 0:00:01]} g6 {[%emt 0:00:
13]} 8. Qb3 {[%emt 0:00:05]} Nxc3 {[%emt 0:00:09]} 9. Bc4 {[%emt 0:00:02]} e6 {
[%emt 0:01:38]} 10. bxc3 {[%emt 0:00:03]} Na5 {[%emt 0:00:50]} 11. Bb5+ {[%emt
0:03:49]} Bd7 {[%emt 0:00:01]} 12. Qa4 {[%emt 0:00:00]} Bc6 {[%emt 0:00:17]}
13. O-O {[%emt 0:04:15]} a6 {[%emt 0:00:08]} 14. Bxc6+ {[%emt 0:00:01]} Nxc6 {
[%emt 0:00:06]} 15. c4 {[%emt 0:00:17]} Bg7 {[%emt 0:01:34]} 16. d5 {[%emt 0:
01:24]} exd5 {[%emt 0:05:04]} 17. Re1+ {[%emt 0:02:08]} Kf8 {[%emt 0:00:01]}
18. Rb1 {[%emt 0:00:01]} Qa5 {[%emt 0:02:19]} 19. Qb3 {[%emt 0:02:25]} b5 {
[%emt 0:01:40]} 20. cxb5 {[%emt 0:01:43]} Nd4 {[%emt 0:01:55]} 21. Qa3+ {[%emt
0:01:06]} Qxa3 {[%emt 0:00:02]} 22. Bxa3+ {[%emt 0:00:01]} Kg8 {[%emt 0:00:00]}
23. Nxd4 {[%emt 0:00:03]} Bxd4 {[%emt 0:00:02]} 24. b6 {[%emt 0:00:03]} Kg7 {
[%emt 0:00:26]} 25. Red1 {[%emt 0:00:18]} Be5 {[%emt 0:00:11]} 26. Rxd5 {[%emt
0:00:02]} Rhe8 {[%emt 0:00:11]} 27. g3 {[%emt 0:00:18]} Rab8 {[%emt 0:01:16]}
28. Rxe5 {[%emt 0:00:10]} Rxe5 {[%emt 0:00:02]} 29. Bb2 {[%emt 0:00:28]} f6 {
[%emt 0:00:06]} 30. Bxe5 {[%emt 0:00:02]} fxe5 {[%emt 0:00:01]} 31. b7 {[%emt
0:00:04]} Kf6 {[%emt 0:00:06]} 32. Kf1 {[%emt 0:00:02]} Ke6 {[%emt 0:00:00]}
33. Ke2 {[%emt 0:00:01]} Kd5 {[%emt 0:00:05]} 34. Ke3 {[%emt 0:00:01]} a5 {
[%emt 0:00:42]} 35. a4 {[%emt 0:00:08]} Kc6 {[%emt 0:00:21]} 36. Ke4 {[%emt 0:
00:01]} Kd6 {[%emt 0:00:00]} 37. h4 {[%emt 0:00:18]} Kc7 {[%emt 0:00:11]} 38.
g4 {[%emt 0:00:07]} Kd6 {[%emt 0:00:14]} 39. g5 {[%emt 0:00:39]} Kc7 {[%emt 0:
00:01]} 40. Rb5 {[%emt 0:00:24]} Kd6 {[%emt 0:00:27]} 41. Rb2 {[%emt 0:00:43]}
Kc7 {[%emt 0:00:01]} 42. f3 {[%emt 0:00:06]} Kd6 {[%emt 0:00:01]} 43. Rb3 {
[%emt 0:00:01]} Kc7 {[%emt 0:00:01]} 44. Kxe5 {[%emt 0:00:02]} Re8+ {[%emt 0:
00:01]} 45. Kf6 {[%emt 0:00:01]} Kb8 {[%emt 0:00:01]} 46. Kg7 {[%emt 0:00:02]}
Re7+ {[%emt 0:00:00]} 47. Kh6 {[%emt 0:00:03]} Rf7 {[%emt 0:00:07]} 48. h5 {
[%emt 0:00:04]} gxh5 {[%emt 0:00:03]} 49. Kxh5 {[%emt 0:00:02]} Rf4 {[%emt 0:
00:00]} 50. Kh6 {[%emt 0:00:03]} Rh4+ {[%emt 0:00:33]} 51. Kg7 {[%emt 0:00:01]}
Rxa4 {[%emt 0:00:24]} 52. Kxh7 {[%emt 0:00:07]} Rh4+ {[%emt 0:00:01]} 53. Kg8 {
[%emt 0:00:20]} Rb4 {[%emt 0:00:02]} 54. Ra3 {[%emt 0:00:23]} a4 {[%emt 0:00:
46]} 55. g6 {[%emt 0:00:02]} Kxb7 {[%emt 0:00:02]} 56. g7 {[%emt 0:00:01]} Ka6
{[%emt 0:00:29]} 57. Kh7 {[%emt 0:00:06]} Rb7 {[%emt 0:00:04]} 58. Kh8 {[%emt
0:00:04]} 1-0

[Event "16th EWICC 2015"]
[Site "Kutaisi"]
[Date "2015.06.01"]
[Round "4"]
[White "Giorgadze, Elene"]
[Black "Gognadze, Tsira"]
[Result "0-1"]
[ECO "C10"]
[WhiteElo "1185"]
[BlackElo "1144"]
[Annotator "Robot 11"]
[PlyCount "49"]
[EventDate "2015.??.??"]
[EventCountry "GEO"]
[TimeControl "900+10"]

1. e4 e6 2. d4 {[%emt 0:00:05]} d5 {[%emt 0:00:00]} 3. Nc3 {[%emt 0:00:13]}
dxe4 {[%emt 0:00:06]} 4. Nxe4 Nd7 5. Nf3 {[%emt 0:00:17]} Ngf6 {[%emt 0:00:01]}
6. Bg5 {[%emt 0:00:55]} Be7 {[%emt 0:00:01]} 7. Bd3 {[%emt 0:02:22]} Nxe4 {
[%emt 0:00:29]} 8. Bxe7 {[%emt 0:00:15]} Qxe7 {[%emt 0:00:01]} 9. Bxe4 {[%emt
0:00:08]} Nf6 {[%emt 0:00:05]} 10. Qd3 {[%emt 0:00:44]} Nxe4 {[%emt 0:02:23]}
11. Qxe4 {[%emt 0:00:07]} Qb4+ {[%emt 0:00:23]} 12. c3 {[%emt 0:01:47]} Qxb2 {
[%emt 0:00:34]} 13. O-O {[%emt 0:00:20]} Qxc3 {[%emt 0:00:33]} 14. Rfc1 {[%emt
0:00:55]} Qa5 {[%emt 0:00:01]} 15. Rc5 {[%emt 0:01:10]} Qb6 {[%emt 0:00:00]}
16. Rb1 {[%emt 0:00:25]} Qd6 {[%emt 0:00:02]} 17. Qg4 {[%emt 0:03:01]} O-O {
[%emt 0:01:27]} 18. Rg5 {[%emt 0:01:49]} g6 {[%emt 0:00:28]} 19. Qh5 {[%emt 0:
00:56]} Kh8 {[%emt 0:03:25]} 20. Qh6 {[%emt 0:01:09]} Rg8 {[%emt 0:03:38]} 21.
Nh4 {[%emt 0:01:40]} Qxd4 {[%emt 0:03:00]} 22. h3 {[%emt 0:00:06]} Qg7 {[%emt
0:00:27]} 23. Qxg7+ {[%emt 0:00:12]} Kxg7 {[%emt 0:00:01]} 24. Rc1 {[%emt 0:00:
11]} c6 25. Rg3 0-1

[Event "16th EWICC 2015"]
[Site "Kutaisi"]
[Date "2015.06.01"]
[Round "4"]
[White "Gunina, Valentina"]
[Black "Kosteniuk, Alexandra"]
[Result "1/2-1/2"]
[ECO "E33"]
[WhiteElo "2535"]
[BlackElo "2530"]
[Annotator "Robot 11"]
[PlyCount "105"]
[EventDate "2015.??.??"]
[EventCountry "GEO"]
[TimeControl "900+10"]

1. d4 {[%emt 0:00:03]} Nf6 {[%emt 0:00:01]} 2. c4 {[%emt 0:00:02]} e6 {[%emt 0:
00:01]} 3. Nc3 {[%emt 0:00:08]} Bb4 {[%emt 0:00:01]} 4. Qc2 {[%emt 0:00:02]}
Nc6 {[%emt 0:00:09]} 5. Nf3 {[%emt 0:00:09]} d6 {[%emt 0:00:05]} 6. Bd2 {[%emt
0:00:20]} O-O {[%emt 0:00:02]} 7. e3 {[%emt 0:00:05]} e5 {[%emt 0:00:22]} 8.
dxe5 {[%emt 0:00:53]} Nxe5 {[%emt 0:00:11]} 9. Be2 {[%emt 0:00:12]} Be6 {[%emt
0:01:12]} 10. a3 {[%emt 0:00:34]} Bxc3 {[%emt 0:01:17]} 11. Bxc3 {[%emt 0:00:
02]} Nfd7 {[%emt 0:00:10]} 12. Nxe5 {[%emt 0:00:14]} Nxe5 {[%emt 0:01:15]} 13.
c5 {[%emt 0:00:10]} Qh4 {[%emt 0:00:48]} 14. O-O {[%emt 0:00:32]} Ng4 {[%emt 0:
04:10]} 15. h3 {[%emt 0:00:17]} Nf6 {[%emt 0:00:20]} 16. cxd6 {[%emt 0:00:06]}
cxd6 {[%emt 0:00:01]} 17. Rad1 {[%emt 0:00:06]} d5 {[%emt 0:00:36]} 18. Rd4 {
[%emt 0:00:10]} Qg5 {[%emt 0:00:02]} 19. f4 {[%emt 0:00:14]} Qh6 {[%emt 0:00:
01]} 20. Rf3 {[%emt 0:00:38]} Ne4 {[%emt 0:01:51]} 21. f5 {[%emt 0:00:23]} Nxc3
{[%emt 0:01:17]} 22. Qxc3 {[%emt 0:00:02]} Bd7 {[%emt 0:00:00]} 23. Rg4 {[%emt
0:00:26]} g6 {[%emt 0:00:49]} 24. Qd4 {[%emt 0:00:23]} Rac8 {[%emt 0:00:32]}
25. Kh2 {[%emt 0:00:40]} Rfe8 {[%emt 0:01:25]} 26. Rh4 {[%emt 0:00:18]} Qg7 {
[%emt 0:00:28]} 27. f6 {[%emt 0:00:38]} Qf8 {[%emt 0:00:01]} 28. Bd3 {[%emt 0:
00:32]} Qd6+ {[%emt 0:00:14]} 29. Rhf4 {[%emt 0:03:04]} Re5 {[%emt 0:00:10]}
30. Qxa7 {[%emt 0:00:17]} b6 {[%emt 0:00:01]} 31. Kg1 {[%emt 0:01:51]} Rxe3 {
[%emt 0:00:07]} 32. Rxe3 {[%emt 0:00:22]} Qxf4 {[%emt 0:00:01]} 33. Rf3 {[%emt
0:00:43]} Qd6 {[%emt 0:00:31]} 34. Qa6 {[%emt 0:00:19]} Re8 {[%emt 0:00:17]}
35. b4 {[%emt 0:00:32]} Re1+ {[%emt 0:00:51]} 36. Bf1 {[%emt 0:00:11]} h5 {
[%emt 0:00:05]} 37. Qd3 {[%emt 0:00:13]} d4 {[%emt 0:00:04]} 38. Qd2 {[%emt 0:
00:21]} Re6 {[%emt 0:00:09]} 39. Rf4 {[%emt 0:00:18]} d3 {[%emt 0:00:06]} 40.
Bxd3 {[%emt 0:02:47]} Rxf6 {[%emt 0:00:57]} 41. Rxf6 {[%emt 0:00:06]} Qxf6 {
[%emt 0:00:00]} 42. Be4 {[%emt 0:01:21]} Qa1+ {[%emt 0:00:17]} 43. Kf2 {[%emt
0:00:04]} Qf6+ {[%emt 0:00:32]} 44. Bf3 {[%emt 0:00:21]} Ba4 {[%emt 0:00:14]}
45. Qd5 {[%emt 0:00:36]} Kg7 {[%emt 0:00:01]} 46. Ke3 {[%emt 0:00:06]} Qc3+ {
[%emt 0:00:11]} 47. Kf4 {[%emt 0:00:10]} Qf6+ {[%emt 0:00:08]} 48. Kg3 {[%emt
0:00:03]} h4+ {[%emt 0:00:11]} 49. Kh2 {[%emt 0:00:04]} Qf4+ {[%emt 0:00:03]}
50. Kg1 {[%emt 0:00:01]} Qe3+ {[%emt 0:00:08]} 51. Kh2 {[%emt 0:00:14]} Qf4+ {
[%emt 0:00:26]} 52. Kg1 {[%emt 0:00:02]} Qe3+ {[%emt 0:00:01]} 53. Kh2 {[%emt
0:00:00]} 1/2-1/2